fUST/lending_fUST_20241013
["ID","MTS","AMOUNT","RATE_DAILY","PERIOD"]
[340189793,1728801038811,-618.01,0.0002896,3]
[340189794,1728801038820,-3155.46,0.0002896,10]
[340189795,1728801038830,-500.0,0.00028969,2]
[340189796,1728801038841,-506.35816544,0.00028969,2]
[340189797,1728801038850,-450.44774945,0.00028969,2]
[340189798,1728801038860,-500.0,0.00028969,2]
[340189799,1728801038869,-419.02945038,0.00028969,2]
[340189800,1728801038879,-225.45882527,0.00028969,2]
[340189801,1728801038888,-328.75732139,0.00028969,2]
[340189802,1728801038897,-500.0,0.00028969,2]
[340189803,1728801038906,-151.0,0.00028969,7]
[340189804,1728801038917,-151.0,0.00028969,7]
[340189805,1728801038927,-151.0,0.00028969,7]
[340189806,1728801038936,-151.0,0.00028969,7]
[340189807,1728801038945,-151.0,0.00028969,7]
[340189808,1728801038955,-62778.1777653,0.0002897,4]
[340189809,1728801038965,-4783.95874488,0.0002897,4]
[340189810,1728801038974,-151.0,0.0002897,7]
[340189811,1728801038983,-151.0,0.0002897,7]
[340189812,1728801038992,-151.0,0.0002897,7]
[340189813,1728801039003,-151.0,0.0002897,7]
[340189814,1728801039012,-151.0,0.0002897,7]
[340189815,1728801039021,-500.0,0.00029,2]
[340189816,1728801039030,-500.0,0.00029,2]
[340189817,1728801039040,-500.0,0.00029,2]
[340189818,1728801039049,-500.0,0.00029,2]
[340189819,1728801039058,-500.0,0.00029,2]
[340189820,1728801039067,-500.0,0.00029,2]
[340189821,1728801039076,-500.0,0.00029,2]
[340189822,1728801039086,-420.0,0.00029028,2]
[340189823,1728801039095,-361.5471361,0.00029123,5]
[340189824,1728801039105,-500.0,0.00029123,5]
[340189825,1728801039114,-500.0,0.00029123,5]
[340189826,1728801039123,-6464.80924647,0.00029296,2]
[340189827,1728801039132,-1021.67846104,0.00029434,2]
[340189828,1728801039142,-166.666666,0.00029454,2]
[340189829,1728801039152,-6464.80924647,0.00029507,2]
[340189830,1728801039161,-420.0,0.00029531,2]
[340189831,1728801039171,-153.35,0.00029594,2]
[340189832,1728801039180,-153.35,0.00029594,2]
[340189833,1728801039190,-153.35,0.00029594,2]
[340189834,1728801039199,-153.35,0.00029594,2]
[340189835,1728801039208,-153.35,0.00029594,2]
[340189836,1728801039217,-153.35,0.00029594,2]
[340189837,1728801039226,-153.35,0.00029594,2]
[340189838,1728801039236,-160.294878,0.00029595,7]
[340189839,1728801039245,-163.168561,0.00029595,7]
[340189840,1728801039255,-234.1624,0.00029595,7]
[340189841,1728801039264,-151.0,0.00029595,7]
[340189842,1728801039273,-151.0,0.00029595,7]
[340189843,1728801039283,-151.0,0.00029595,7]
[340189844,1728801039292,-125556.355531,0.00029595,4]
[340189845,1728801039301,-9567.91748976,0.00029595,4]
[340189846,1728801039310,-151.0,0.00029605,7]
[340189847,1728801039320,-151.0,0.00029605,7]
[340189848,1728801039330,-205.517006,0.00029605,7]
[340189849,1728801039340,-242.924632,0.00029605,7]
[340189850,1728801039350,-242.924632,0.00029605,7]
[340189851,1728801039359,-237.40055396,0.00029605,7]
[340189852,1728801039371,-5.52407804,0.00029605,7]
[340189853,1728801039381,-151.0,0.00029605,7]
[340189854,1728801039390,-242.924632,0.00029605,7]
[340189855,1728801039400,-151.0,0.00029605,7]
[340189856,1728801039409,-151.0,0.00029605,7]
[340189857,1728801039419,-159.356641,0.00029605,7]
[340189858,1728801039428,-151.0,0.00029605,7]
[340189859,1728801039438,-151.0,0.00029605,7]
[340189860,1728801039447,-151.0,0.00029605,7]
[340189861,1728801039456,-151.0,0.00029605,7]
[340189862,1728801039466,-151.0,0.00029605,7]
[340189863,1728801039475,-151.0,0.00029605,7]
[340189864,1728801039485,-151.0,0.00029605,7]
[340189865,1728801039494,-151.0,0.00029605,7]
[340189866,1728801039503,-428.798792,0.00029605,7]
[340189867,1728801039513,-428.798792,0.00029605,7]
[340189868,1728801039522,-428.798792,0.00029605,7]
[340189869,1728801039531,-428.798792,0.00029605,7]
[340189870,1728801039540,-722.740111,0.00029605,7]
[340189871,1728801039550,-722.740111,0.00029605,7]
[340189872,1728801039559,-151.0,0.00029605,7]
[340189873,1728801039576,-151.0,0.00029605,7]
[340189874,1728801039588,-722.740111,0.00029605,7]
[340189875,1728801039597,-722.740111,0.00029605,7]
[340189876,1728801039607,-151.0,0.00029605,7]
[340189877,1728801039616,-151.0,0.00029605,7]
[340189878,1728801039626,-252.750387,0.00029605,7]
[340189879,1728801039639,-252.750387,0.00029605,7]
[340189880,1728801039648,-252.750387,0.00029605,7]
[340189881,1728801039658,-252.750387,0.00029605,7]
[340189882,1728801039764,-305.517385,0.00029605,7]
[340189883,1728801039774,-305.517385,0.00029605,7]
[340189884,1728801039783,-305.517385,0.00029605,7]
[340189885,1728801039792,-305.517385,0.00029605,7]
[340189886,1728801039801,-1452.659478,0.00029605,7]
[340189887,1728801039810,-1452.659478,0.00029605,7]
[340189888,1728801039820,-1452.659478,0.00029605,7]
[340189889,1728801039829,-1452.659478,0.00029605,7]
[340189890,1728801039841,-151.0,0.00029605,7]
[340189891,1728801039850,-151.0,0.00029605,7]
[340189892,1728801039860,-151.0,0.00029605,7]
[340189893,1728801039870,-288.711888,0.00029605,7]
[340189894,1728801039881,-287.916604,0.00029605,7]
[340189895,1728801039893,-287.916604,0.00029605,7]
[340189896,1728801039903,-287.916604,0.00029605,7]
[340189897,1728801039913,-287.916604,0.00029605,7]
[340189898,1728801039923,-181.2691642,0.00029605,7]
[340189899,1728801040066,-106.6474398,0.00029605,7]
[340189900,1728801040075,-287.916604,0.00029605,7]
[340189901,1728801040085,-151.0,0.00029605,7]
[340189902,1728801040094,-151.0,0.00029605,7]
[340189903,1728801040103,-109.63930818,0.00029605,7]
[340189904,1728801040171,-41.36069182,0.00029605,7]
[340189905,1728801040182,-151.0,0.00029605,7]
[340189906,1728801040193,-151.0,0.00029605,7]
[340189907,1728801040204,-151.0,0.00029605,7]
[340189908,1728801040216,-155.53140686,0.00029605,7]
[340189909,1728801040226,-151.0,0.00029605,7]
[340189910,1728801040237,-151.0,0.00029605,7]
[340189911,1728801040247,-151.0,0.00029605,7]
[340189912,1728801040258,-151.0,0.00029605,7]
[340189913,1728801040268,-151.0,0.00029605,7]
[340189914,1728801040277,-151.0,0.00029605,7]
[340189915,1728801040287,-6464.80924647,0.00029814,2]
[340189916,1728801040297,-151.0,0.00029814,7]
[340189917,1728801040306,-1000.0,0.00029901,2]
[340189918,1728801040316,-151.0,0.00029912,7]
[340189919,1728801040325,-151.0,0.00029912,7]
[340189920,1728801040334,-62778.1777653,0.00029921,4]
[340189921,1728801040344,-4783.95874488,0.00029921,4]
[340189922,1728801040353,-151.0,0.00029921,7]
[340189923,1728801040363,-151.0,0.00029921,7]
[340189924,1728801040377,-157.175027,0.00029921,7]
[340189925,1728801040387,-1021.67846104,0.00029999,2]
[340189926,1728801040397,-3010.0,0.0003,7]
[340189927,1728801040407,-379.0,0.0003,2]
[340189928,1728801040418,-221.0,0.0003,2]
[340189929,1728801040429,-875.72904696,0.0003,15]
[340189930,1728801040439,-4748.82198345,0.0003,10]
[340189931,1728801040454,-1015.49106109,0.0003,7]
[340189932,1728801040463,-166.49162359,0.0003,2]
[340189933,1728801040472,-215.98134358,0.0003,2]
[340189934,1728801040483,-6464.80924651,0.00030086,2]
[340189935,1728801040495,-151.0,0.00030103,7]
[340189936,1728801040507,-151.0,0.00030103,7]
[340189937,1728801040517,-305.517385,0.00030103,7]
[340189938,1728801040527,-305.517385,0.00030103,7]
[340189939,1728801040538,-1452.659478,0.00030103,7]
[340189940,1728801040548,-1452.659478,0.00030103,7]
[340189941,1728801040558,-151.0,0.00030103,7]
[340189942,1728801040568,-151.0,0.00030103,7]
[340189943,1728801040580,-151.0,0.00030103,7]
[340189944,1728801040590,-1000.0,0.00030103,5]
[340189945,1728801040601,-151.0,0.00030108,7]
[340189946,1728801040611,-287.916604,0.00030108,7]
[340189947,1728801040621,-287.916604,0.00030108,7]
[340189948,1728801040632,-167.314923,0.00030108,7]
[340189949,1728801040642,-151.0,0.00030108,7]
[340189950,1728801040653,-151.0,0.00030108,7]
[340189951,1728801040663,-151.0,0.00030319,7]
[340189952,1728801040673,-151.0,0.00030319,7]
[340189953,1728801040682,-151.0,0.00030319,7]
[340189954,1728801040692,-151.0,0.00030319,7]
[340189955,1728801040702,-151.0,0.00030319,7]
[340189956,1728801040712,-39.37328113,0.0003033,3]
[340189957,1728801040724,-509.94671887,0.0003033,3]
[340189958,1728801040734,-823.96,0.0003033,3]
[340189959,1728801040744,-411.98,0.0003033,3]
[340189960,1728801040754,-428.343,0.00030363,25]
[340189961,1728801040764,-379.0,0.00030411,2]
[340189962,1728801040773,-404.08246257,0.00030493,5]
[340189976,1728801043123,-57.88918962,0.0002999,10]
[340189999,1728801046047,-153.79288774,0.0002999,10]
[340190014,1728802034142,-174.97198643,0.00025016,2]
[340190015,1728802041155,-229.83717323,0.00025016,2]
[340190016,1728802041193,-225.66779526,0.00025016,2]
[340190018,1728802145137,-168.57289,0.00024553,2]
[340190019,1728802145266,-300.0,0.00024797,2]
[340190020,1728802145288,-300.0,0.00024797,2]
[340190021,1728802145309,-12089.80205768,0.00024798,2]
[340190022,1728802147117,-12810.19794232,0.00024798,2]
[340190023,1728802147164,-250.0,0.00024853,2]
[340190024,1728802147187,-250.0,0.00024921,2]
[340190025,1728802147210,-250.0,0.00024989,2]
[340190026,1728802147232,-149.86368408,0.00025016,2]
[340190027,1728802147255,-1292.438908,0.00025051,2]
[340190028,1728802147277,-250.0,0.00025057,2]
[340190029,1728802147299,-250.0,0.00025125,2]
[340190030,1728802147320,-250.0,0.00025194,2]
[340190031,1728802147342,-512.30046033,0.000252,2]
[340190032,1728802147364,-250.0,0.00025262,2]
[340190033,1728802147385,-166.666666,0.00025274,2]
[340190034,1728802147407,-250.0,0.0002533,2]
[340190035,1728802147429,-250.0,0.00025398,2]
[340190036,1728802147454,-166.765665,0.00025458,2]
[340190037,1728802147476,-250.0,0.00025466,2]
[340190038,1728802147500,-166.765665,0.00025472,2]
[340190039,1728802147525,-166.765665,0.00025487,2]
[340190040,1728802147548,-166.765665,0.00025501,2]
[340190041,1728802147569,-166.765665,0.00025515,2]
[340190042,1728802147590,-166.765665,0.00025529,2]
[340190043,1728802147611,-250.0,0.00025534,2]
[340190044,1728802147638,-166.765665,0.00025543,2]
[340190045,1728802147659,-166.765665,0.00025557,2]
[340190046,1728802147680,-166.765665,0.00025571,2]
[340190047,1728802147702,-166.765665,0.00025586,2]
[340190048,1728802147723,-250.0,0.00025603,2]
[340190049,1728802147745,-250.0,0.00025671,2]
[340190050,1728802147765,-780.340639,0.00025701,2]
[340190051,1728802147787,-250.0,0.00025739,2]
[340190052,1728802147809,-7870.72483096,0.00025783,2]
[340190053,1728802153120,-3963.87184011,0.00025783,2]
[340190054,1728802153140,-4642.2083908,0.00025784,2]
[340190055,1728802153161,-250.0,0.00025807,2]
[340190056,1728802153183,-500.0,0.00025868,2]
[340190057,1728802153204,-437.10185796,0.00025868,2]
[340190058,1728802153225,-534.40778127,0.00025868,2]
[340190059,1728802153248,-500.0,0.00025868,2]
[340190060,1728802153270,-214.46585971,0.00025868,2]
[340190061,1728802153290,-3000.0,0.00025869,2]
[340190062,1728802153423,-250.0,0.00025875,2]
[340190063,1728802171100,-500.0,0.0002591,2]
[340190064,1728802171124,-250.0,0.00025943,2]
[340190065,1728802171146,-166.666666,0.00025963,2]
[340190066,1728802171168,-250.0,0.00026012,2]
[340190067,1728802171190,-250.0,0.0002608,2]
[340190068,1728802171213,-250.0,0.00026148,2]
[340190069,1728802171235,-780.340639,0.00026386,2]
[340190070,1728802171256,-500.0,0.00026417,2]
[340190071,1728802171277,-500.0,0.00026417,2]
[340190072,1728802171298,-521.2546016,0.00026417,2]
[340190073,1728802171319,-157.0,0.0002642,2]
[340190074,1728802171340,-500.0,0.00026425,2]
[340190075,1728802171361,-502.232171,0.00026425,2]
[340190076,1728802171384,-166.666666,0.00026652,2]
[340190077,1728802171406,-420.0,0.00026869,2]
[340190078,1728802171426,-160.871286,0.00026969,2]
[340190079,1728802171446,-319.57890204,0.00026973,2]
[340190080,1728802171466,-88.8929738,0.00027024,2]
[340190114,1728802232275,-149.7270262,0.00027024,2]
[340190115,1728802232284,-500.0,0.00027073,2]
[340190116,1728802232294,-500.0,0.00027073,2]
[340190117,1728802232303,-505.63140856,0.00027073,2]
[340190118,1728802232313,-166.666666,0.00027341,2]
[340190119,1728802232322,-300.0,0.00027396,2]
[340190120,1728802232332,-300.0,0.00027396,2]
[340190121,1728802232341,-475.167509,0.00027397,2]
[340190122,1728802232351,-1473.40354218,0.00027678,2]
[340190158,1728802238847,-19.44133182,0.00027678,2]
[340190160,1728802240441,-1877.5637237,0.00027678,2]
[340190161,1728802240452,-1000.0,0.00027787,5]
[340190162,1728802240461,-505.12322668,0.00027787,5]
[340190163,1728802240471,-1052.09959309,0.00027795,5]
[340190164,1728802240480,-166.666666,0.0002803,2]
[340190165,1728802240490,-500.0,0.00028442,5]
[340190166,1728802240499,-150.0,0.00028544,2]
[340190167,1728802240508,-166.666666,0.00028719,2]
[340190168,1728802240518,-500.0,0.00029,2]
[340190169,1728802240527,-500.0,0.00029,2]
[340190170,1728802240536,-8929.57919978,0.0002911,2]
[340190171,1728802240545,-473.08023213,0.00029251,2]
[340190172,1728802240554,-151.0,0.00029595,7]
[340190173,1728802240564,-420.0,0.00029606,2]
[340190174,1728802240574,-10048.85851725,0.0002968,2]
[340190175,1728802240583,-1423.28692868,0.0002968,2]
[340190176,1728802240593,-213.05260136,0.0002968,2]
[340190177,1728802240605,-1000.0,0.00029689,2]
[340190178,1728802240617,-613.00707664,0.0002969,2]
[340190179,1728802240627,-613.00707662,0.00029693,2]
[340190180,1728802240638,-613.00707662,0.00029695,2]
[340190181,1728802240648,-613.00707662,0.00029698,2]
[340190182,1728802240660,-613.00707662,0.000297,2]
[340190183,1728802240670,-1000.0,0.00029769,7]
[340190184,1728802240682,-186.11,0.0002977,3]
[340190185,1728802240692,-558.35,0.0002977,3]
[340190186,1728802240703,-1307.62,0.0002977,10]
[340190187,1728802240714,-2493.54,0.0002977,10]
[340190188,1728802240724,-500.0,0.00029773,5]
[340190189,1728802240735,-500.0,0.00029779,2]
[340190190,1728802240746,-354.45071581,0.00029779,2]
[340190191,1728802240757,-315.31342462,0.00029779,2]
[340190192,1728802240766,-643.32061527,0.00029779,2]
[340190193,1728802240775,-357.82117769,0.00029779,2]
[340190194,1728802240785,-230.13012497,0.00029779,2]
[340190195,1728802240794,-62245.86129871,0.0002978,4]
[340190198,1728802246463,-25.53746369,0.00029689,2]
[340190211,1728803071783,-181.601676,0.00024839,2]
[340190212,1728803071805,-3000.0,0.0002518,2]
[340190213,1728803071828,-646.219454,0.00025232,2]
[340190214,1728803071850,-173.2407369,0.00025355,2]
[340190215,1728803071876,-763.112509,0.0002546,2]
[340190216,1728803071899,-162.601754,0.00025748,2]
[340190217,1728803071921,-403.17912536,0.00025775,2]
[340190218,1728803071944,-300.0,0.00025791,2]
[340190219,1728803071966,-300.0,0.00025791,2]
[340190220,1728803071989,-12689.1648319,0.00025792,2]
[340190221,1728803072013,-1319.5105774,0.00025875,2]
[340190222,1728803072038,-763.112509,0.00026145,2]
[340190223,1728803072062,-4845.0659184,0.00026177,2]
[340190224,1728803072087,-250.0,0.0002651,2]
[340190225,1728803072112,-181.601676,0.00026532,2]
[340190226,1728803072136,-250.0,0.00026583,2]
[340190227,1728803072159,-250.0,0.00026656,2]
[340190228,1728803072182,-250.0,0.00026728,2]
[340190229,1728803072205,-250.0,0.00026801,2]
[340190230,1728803072228,-763.112509,0.00026829,2]
[340190231,1728803072250,-5099.97971577,0.00026848,2]
[340190232,1728803072273,-250.0,0.00026874,2]
[340190233,1728803072295,-156.0,0.0002688,2]
[340190234,1728803072317,-193.66046304,0.00026924,2]
[340190235,1728803072340,-250.0,0.00026946,2]
[340190236,1728803072365,-250.0,0.00027019,2]
[340190237,1728803072390,-10206.45760284,0.00027065,2]
[340190238,1728803072414,-250.0,0.00027092,2]
[340190239,1728803072437,-250.0,0.00027165,2]
[340190240,1728803072460,-250.0,0.00027237,2]
[340190241,1728803072483,-250.0,0.0002731,2]
[340190242,1728803072507,-250.0,0.00027383,2]
[340190243,1728803072529,-412.410185,0.00027397,2]
[340190244,1728803072551,-271.1227312,0.00027421,2]
[340190245,1728803072573,-182.65283916,0.00027421,2]
[340190246,1728803072595,-500.0,0.00027421,2]
[340190247,1728803072619,-500.0,0.00027421,2]
[340190248,1728803072642,-513.78382793,0.00027421,2]
[340190249,1728803072664,-500.0,0.00027421,2]
[340190250,1728803072687,-500.0,0.00027421,2]
[340190251,1728803072709,-425.13516337,0.00027421,2]
[340190252,1728803072732,-500.0,0.00027421,2]
[340190253,1728803072755,-564.9362524,0.00027421,2]
[340190254,1728803072777,-756.33923277,0.00027422,2]
[340190255,1728803072799,-9187.99870956,0.00027423,2]
[340190257,1728803090898,-229.43736138,0.00027064,2]
[340190258,1728803090925,-158.34835149,0.00027064,2]
[340190259,1728803090948,-15712.00129044,0.00027423,2]
[340190260,1728803090970,-250.0,0.00027455,2]
[340190261,1728803090992,-500.0,0.00027473,2]
[340190262,1728803091015,-250.0,0.00027528,2]
[340190263,1728803091037,-250.0,0.00027601,2]
[340190264,1728803091060,-250.0,0.00027674,2]
[340190265,1728803091084,-250.0,0.00027746,2]
[340190266,1728803091106,-250.0,0.00027819,2]
[340190267,1728803091132,-250.0,0.00027892,2]
[340190268,1728803091154,-420.0,0.00027918,2]
[340190269,1728803091178,-181.601676,0.00028225,2]
[340190270,1728803091201,-420.0,0.00028371,2]
[340190271,1728803091223,-6701.76829037,0.00028661,2]
[340190272,1728803091244,-500.0,0.00028842,2]
[340190273,1728803091265,-6701.76829037,0.0002897,2]
[340190274,1728803091287,-1000.0,0.00029,120]
[340190275,1728803091309,-500.0,0.00029,2]
[340190276,1728803091331,-500.0,0.00029,2]
[340190277,1728803091354,-500.0,0.00029,2]
[340190278,1728803091377,-3619.15,0.00029128,10]
[340190279,1728803091399,-6701.76829037,0.00029138,2]
[340190280,1728803091420,-474.42897624,0.00029223,2]
[340190281,1728803091442,-474.42897622,0.00029248,2]
[340190282,1728803091466,-558.35,0.00029313,3]
[340190283,1728803091487,-3015.96,0.00029313,10]
[340190284,1728803091508,-2513.3,0.00029313,10]
[340190285,1728803091531,-186.11,0.00029314,3]
[340190286,1728803091558,-500.0,0.00029322,2]
[340190287,1728803091583,-500.0,0.00029322,2]
[340190288,1728803091607,-388.55792077,0.00029322,2]
[340190289,1728803091632,-293.94120996,0.00029322,2]
[340190290,1728803091657,-422.81555159,0.00029322,2]
[340190291,1728803091679,-227.46086621,0.00029322,2]
[340190292,1728803091701,-520.27790981,0.00029322,2]
[340190293,1728803091724,-36824.52503878,0.00029323,4]
[340190294,1728803121410,-501.11138994,0.00027473,5]
[340190295,1728803121432,-474.42897622,0.00029273,2]
[340190296,1728803121455,-1745.35,0.00029313,10]
[340190297,1728803121478,-153.38,0.00029322,2]
[340190298,1728803121499,-300.0,0.00029322,2]
[340190299,1728803121524,-17524.27804382,0.00029323,4]
[340190300,1728803121548,-93519.026918,0.00029323,4]
[340190301,1728803121570,-151.0,0.00029323,7]
[340190302,1728803121592,-151.0,0.00029323,7]
[340190303,1728803121615,-578.192089,0.00029323,7]
[340190304,1728803121637,-578.192089,0.00029323,7]
[340190305,1728803121660,-6701.76829037,0.00029337,2]
[340190306,1728803121682,-500.0,0.00029373,5]
[340190307,1728803121705,-8908.07479197,0.00029378,2]
[340190308,1728803121727,-613.00707664,0.00029589,2]
[340190309,1728803121749,-613.00707662,0.00029617,2]
[340190310,1728803121771,-177.37226895,0.0002963,2]
[340190311,1728803121793,-613.00707662,0.00029645,2]
[340190312,1728803121815,-613.00707662,0.00029672,2]
[340190313,1728803121842,-613.00707662,0.000297,2]
[340190314,1728803121978,-3550.68523504,0.000297,2]
[340190315,1728803122002,-342.674,0.00029729,23]
[340190316,1728803122024,-151.0,0.0002977,7]
[340190317,1728803122047,-151.0,0.0002977,7]
[340190318,1728803122073,-151.0,0.0002977,7]
[340190319,1728803122098,-151.0,0.0002977,7]
[340190320,1728803122122,-578.192089,0.0002977,7]
[340190321,1728803122144,-578.192089,0.0002977,7]
[340190322,1728803122168,-578.192089,0.0002977,7]
[340190323,1728803122195,-578.192089,0.0002977,7]
[340190324,1728803122220,-4.66216857,0.0002977,4]
[340190326,1728803191532,-24900.0,0.00028125,2]
[340190327,1728803191556,-150.0,0.00028819,2]
[340190328,1728803191581,-150.80018939,0.0002929,2]
[340190329,1728803191605,-504.22615518,0.00029322,2]
[340190330,1728803191630,-5773.8863001,0.00029433,2]
[340190331,1728803191655,-300.0,0.00029759,2]
[340190332,1728803191680,-300.0,0.00029759,2]
[340190333,1728803191703,-4926.09171806,0.00029759,2]
[340190334,1728803191729,-1594.79,0.0002976,10]
[340190335,1728803191755,-1537.73,0.0002976,10]
[340190336,1728803191779,-372.22,0.0002976,3]
[340190337,1728803191806,-1281.44,0.0002976,10]
[340190338,1728803191832,-1067.87,0.0002976,10]
[340190339,1728803191859,-54344.14091403,0.0002977,4]
[340190340,1728803191884,-93519.026918,0.0002977,4]
[340190341,1728803191909,-500.0,0.00029773,5]
[340190342,1728803191935,-500.0,0.00029773,5]
[340190343,1728803191960,-500.0,0.00029773,5]
[340190344,1728803191986,-500.74090198,0.00029773,5]
[340190345,1728803192010,-500.0,0.00029773,5]
[340190346,1728803192034,-500.2679893,0.00029773,5]
[340190347,1728803192058,-1000.0,0.00029775,7]
[340190348,1728803192082,-201.541623,0.0002978,7]
[340190349,1728803192108,-151.0,0.0002978,7]
[340190350,1728803192132,-151.0,0.0002978,7]
[340190351,1728803192157,-202.20031,0.0002978,7]
[340190352,1728803192180,-202.20031,0.0002978,7]
[340190353,1728803192205,-151.0,0.0002978,7]
[340190354,1728803192232,-151.0,0.0002978,7]
[340190355,1728803192258,-151.0,0.0002978,7]
[340190356,1728803192284,-151.0,0.0002978,7]
[340190357,1728803192311,-151.0,0.0002978,7]
[340190358,1728803192335,-151.0,0.0002978,7]
[340190359,1728803192360,-151.0,0.0002978,7]
[340190360,1728803192382,-151.0,0.0002978,7]
[340190361,1728803192405,-151.0,0.0002978,7]
[340190362,1728803192518,-151.0,0.0002978,2]
[340190363,1728803192546,-230.902729,0.0002978,7]
[340190364,1728803192570,-293.990421,0.0002978,7]
[340190365,1728803192595,-230.902729,0.0002978,7]
[340190366,1728803192620,-293.990421,0.0002978,7]
[340190367,1728803192646,-151.0,0.0002978,7]
[340190368,1728803192671,-151.0,0.0002978,7]
[340190369,1728803192694,-151.0,0.0002978,7]
[340190370,1728803192716,-686.734221,0.0002978,7]
[340190371,1728803192737,-686.734221,0.0002978,7]
[340190372,1728803192760,-343.039034,0.0002978,7]
[340190373,1728803192782,-343.039034,0.0002978,7]
[340190374,1728803192805,-194.339706,0.0002978,7]
[340190375,1728803192827,-194.339706,0.0002978,7]
[340190376,1728803192851,-244.413908,0.0002978,7]
[340190377,1728803192874,-244.413908,0.0002978,7]
[340190378,1728803192896,-151.0,0.0002978,7]
[340190379,1728803192919,-151.0,0.0002978,7]
[340190380,1728803192940,-151.0,0.0002979,7]
[340190381,1728803192963,-151.0,0.0002979,7]
[340190382,1728803192985,-151.0,0.0002979,7]
[340190383,1728803193008,-151.0,0.0002979,7]
[340190384,1728803193032,-290.899228,0.0002979,7]
[340190385,1728803193055,-201.541623,0.0002979,7]
[340190386,1728803193079,-151.0,0.0002979,3]
[340190387,1728803193102,-154.596307,0.0002979,7]
[340190388,1728803193124,-151.0,0.0002979,7]
[340190389,1728803193147,-202.20031,0.0002979,7]
[340190390,1728803193170,-202.20031,0.0002979,7]
[340190391,1728803193195,-163046.409248,0.0002979,4]
[340190392,1728803193222,-187038.053836,0.0002979,4]
[340190393,1728803193246,-151.0,0.0002979,7]
[340190394,1728803193270,-151.0,0.0002979,7]
[340190395,1728803193294,-151.0,0.0002979,7]
[340190396,1728803193317,-151.0,0.0002979,7]
[340190397,1728803193341,-578.192089,0.0002979,7]
[340190398,1728803193365,-578.192089,0.0002979,7]
[340190399,1728803193388,-578.192089,0.0002979,7]
[340190400,1728803193412,-578.192089,0.0002979,7]
[340190401,1728803193435,-151.0,0.0002979,7]
[340190402,1728803193458,-151.0,0.0002979,7]
[340190403,1728803193482,-151.0,0.0002979,7]
[340190404,1728803193505,-287.827478,0.0002979,7]
[340190405,1728803193529,-151.0,0.0002979,7]
[340190406,1728803193554,-151.0,0.0002979,7]
[340190407,1728803193577,-151.0,0.0002979,7]
[340190408,1728803193600,-155.054588,0.0002979,7]
[340190409,1728803193623,-151.0,0.0002979,7]
[340190410,1728803193648,-151.0,0.0002979,7]
[340190411,1728803193672,-133000.64553255,0.000298,2]
[340190412,1728803193698,-1474.46,0.000298,14]
[340190413,1728803193721,-1519.99,0.000298,30]
[340190414,1728803193748,-151.0,0.000298,7]
[340190415,1728803193772,-5796.82,0.000298,30]
[340190416,1728803193798,-151.0,0.000298,7]
[340190417,1728803193821,-151.0,0.000298,7]
[340190418,1728803193843,-208.675615,0.000298,7]
[340190419,1728803193868,-281.784425,0.000298,7]
[340190420,1728803193893,-151.0,0.000298,7]
[340190421,1728803193918,-389.85097,0.000298,7]
[340190422,1728803193942,-389.85097,0.000298,7]
[340190423,1728803193965,-151.0,0.000298,7]
[340190424,1728803193994,-151.0,0.000298,7]
[340190425,1728803194017,-151.0,0.000298,7]
[340190426,1728803194125,-151.0,0.000298,7]
[340190427,1728803194148,-151.0,0.000298,7]